bitfinex-derivatives/quotes_ETHF0:USTF0_20230403
["timestamp","ask_amount","ask_price","bid_price","bid_amount"]
[1680483690395,3.2078,1791.5,1791.3,1.58408785]
[1680483691994,3.2078,1791.5,1791.3,2.69508785]
[1680483692903,3.2078,1791.5,1791.4,1.116]
[1680483693199,1.116,1791.8,1791.4,4.3238]
[1680483693395,1.116,1791.8,1791.5,0.58408785]
[1680483693599,1.116,1791.8,1791.5,1.58408785]
[1680483695305,4.90772706,1792.3,1791.7,1.108]
[1680483695500,4.3238,1792.3,1791.9,1.108]
[1680483695804,4.3238,1792.3,1792.0,1.0]
[1680483696000,4.3238,1792.3,1791.9,1.108]
[1680483696001,4.3238,1792.3,1791.9,2.108]
[1680483696201,4.3238,1792.3,1791.9,2.69208785]
[1680483696507,4.3238,1792.3,1791.9,2.108]
[1680483697008,1.116,1792.3,1792.0,3.2078]
[1680483697313,0.58592706,1792.6,1792.2,4.3178]
[1680483697314,0.002,1792.6,1792.2,4.3178]
[1680483697504,0.002,1792.6,1792.5,1.108]
[1680483700606,0.002,1792.6,1792.5,2.19008831]
[1680483702005,0.002,1792.6,1792.5,1.08208831]
[1680483705816,0.002,1792.6,1792.3,1.65326143]
[1680483712111,0.002,1792.6,1792.4,1.116]
[1680483715515,0.002,1792.6,1792.5,0.78029434]
[1680483716110,1.118,1792.6,1792.0,1.116]
[1680483716313,4.3238,1792.5,1792.0,1.66778319]
[1680483717308,3.2078,1792.3,1792.0,1.66778319]
[1680483719122,1.105,1792.1,1792.0,0.55178319]
[1680483719418,4.3128,1792.1,1791.7,1.46021963]
[1680483719605,3.2078,1792.1,1791.8,1.116]
[1680483720213,3.2078,1792.1,1791.9,1.0]
[1680483720917,1.112,1792.2,1791.9,1.0]
[1680483722019,3.2078,1792.3,1791.9,1.11]
[1680483722020,4.3188,1792.3,1791.9,1.11]
[1680483728723,3.2078,1792.1,1791.9,1.11]
[1680483730023,4.3188,1792.1,1791.8,0.58408785]
[1680483730229,4.3188,1792.1,1791.7,1.99213178]
[1680483730230,4.3188,1791.9,1791.6,1.46021963]
[1680483730528,4.3188,1791.9,1791.6,0.58408785]
[1680483730722,4.3188,1791.9,1791.6,1.46021963]
[1680483732526,4.3188,1791.9,1791.6,0.58408785]
[1680483733324,4.3188,1791.9,1791.7,0.58408785]
[1680483735229,3.2078,1791.9,1791.7,1.69508785]
[1680483735533,3.2078,1792.2,1791.8,2.99213178]
[1680483735728,1.116,1792.3,1791.9,3.79044705]
[1680483735923,1.116,1792.3,1791.9,0.58264705]
[1680483736231,1.116,1792.3,1791.9,4.66657883]
[1680483736430,1.116,1792.3,1791.9,3.79044705]
[1680483737223,1.116,1792.3,1792.0,0.58264705]
[1680483739631,1.87589151,1792.5,1792.1,5.78257883]
[1680483739632,1.116,1792.5,1792.1,5.78257883]
[1680483739830,3.79372706,1792.6,1792.3,0.58264705]
[1680483740035,3.2098,1792.6,1792.3,0.58264705]
[1680483740238,3.79372706,1792.6,1792.2,2.57477883]
[1680483740437,3.2098,1792.6,1792.2,2.57477883]
[1680483741326,3.79372706,1792.6,1792.3,0.58264705]
[1680483741524,3.2098,1792.6,1792.3,0.58264705]
[1680483741726,0.002,1792.6,1792.3,0.58264705]
[1680483742525,3.2098,1792.6,1792.3,0.58264705]
[1680483745531,3.2098,1792.6,1792.4,0.47750394]
[1680483745836,3.2098,1792.6,1792.3,1.45877883]
[1680483747739,3.2098,1792.6,1792.4,0.58264705]
[1680483749732,3.79372706,1792.6,1792.4,0.58264705]
[1680483752839,0.58592706,1792.6,1792.5,1.111]
[1680483753046,0.002,1792.6,1792.5,1.69364705]
[1680483753842,0.002,1792.6,1792.5,2.56977883]
[1680483754040,0.002,1792.6,1792.5,2.5707639]
[1680483754238,4.90772706,1792.8,1792.5,1.98713178]
[1680483754441,4.90772706,1792.8,1792.6,0.58363107]
[1680483754740,4.90772706,1792.8,1792.6,1.58363107]
[1680483755050,4.90772706,1792.8,1792.6,0.58363107]
[1680483755735,4.90772706,1792.8,1792.5,2.57076285]
[1680483757642,4.3238,1792.8,1792.5,2.57076285]
[1680483759846,4.3238,1792.8,1792.5,1.69463107]
[1680483760549,4.3238,1792.8,1792.6,0.5763655]
[1680483763447,1.116,1792.8,1792.6,0.5763655]
[1680483765151,0.58392706,1792.9,1792.6,0.5763655]
[1680483767254,4.3238,1792.8,1792.6,0.5763655]
[1680483767844,4.90772706,1792.8,1792.6,0.5763655]
[1680483768255,4.3238,1792.8,1792.6,0.5763655]
[1680483772662,4.90772706,1792.8,1792.6,0.5763655]
[1680483775460,1.116,1792.8,1792.6,0.5763655]
[1680483776558,4.3238,1792.8,1792.6,0.5763655]
[1680483776755,4.90772706,1792.8,1792.6,1.15999657]
[1680483777657,0.58285983,1792.9,1792.7,1.69963107]
[1680483777860,4.63312116,1793.0,1792.7,1.69963107]
[1680483777861,4.34008948,1793.0,1792.7,1.69963107]
[1680483778160,4.34008948,1793.0,1792.8,0.63141471]
[1680483778354,5.21598099,1793.0,1792.8,0.63141471]
[1680483778561,0.58285983,1792.9,1792.8,0.63141471]
[1680483778957,5.21598099,1793.0,1792.8,0.63141471]
[1680483779660,0.58285983,1792.9,1792.8,0.63141471]
[1680483782059,0.58285983,1792.9,1792.8,2.32604578]
[1680483782951,0.58285983,1792.9,1792.8,0.63141471]
[1680483782952,1.99189151,1792.9,1792.8,0.63141471]
[1680483783157,2.116,1792.9,1792.8,0.63141471]
[1680483783362,2.116,1792.9,1792.7,0.58363107]
[1680483783560,5.66618304,1792.8,1792.7,0.58363107]
[1680483783960,5.66618304,1792.8,1792.7,1.29430661]
[1680483784165,5.08282982,1792.8,1792.7,1.29430661]
[1680483785366,5.08482982,1792.8,1792.7,1.29430661]
[1680483787777,4.08482982,1792.8,1792.7,1.29430661]
[1680483788876,3.2098,1792.8,1792.7,1.29430661]
[1680483789174,4.0854319,1792.8,1792.7,1.29430661]
[1680483789674,3.2098,1792.8,1792.7,1.29430661]
[1680483791665,4.37758141,1792.8,1792.7,1.29430661]
[1680483791870,3.2098,1792.8,1792.7,1.29430661]
[1680483792066,4.3208,1792.8,1792.7,1.29430661]
[1680483792680,0.58581046,1792.8,1792.7,2.99714098]
[1680483792872,0.002,1792.8,1792.7,2.99714098]
[1680483793379,0.58581046,1792.8,1792.7,2.99714098]
[1680483797777,0.58581046,1792.8,1792.7,1.88114098]
[1680483802480,3.79361046,1792.8,1792.7,1.88114098]
[1680483802682,4.90461046,1792.8,1792.7,1.58789475]
[1680483802892,5.19643422,1792.8,1792.7,2.17272455]
[1680483803090,6.31243422,1792.8,1792.7,1.29550534]
[1680483803287,6.60458141,1792.8,1792.7,0.71067554]
[1680483803487,1.0,1792.7,1792.5,0.5848298]
[1680483803698,5.49107412,1792.6,1792.5,0.5848298]
[1680483804188,5.49107412,1792.6,1792.5,0.78563156]
[1680483804595,5.49107412,1792.6,1792.5,0.20080176]
[1680483804988,5.49107412,1792.6,1792.4,0.5848298]
[1680483805188,1.98610963,1792.5,1792.4,0.5848298]
[1680483805591,1.98610963,1792.5,1792.4,0.78558422]
[1680483806601,2.56933323,1792.5,1792.4,0.78558422]
[1680483807596,1.6942236,1792.5,1792.4,0.78558422]
[1680483808404,2.56933323,1792.5,1792.4,0.78558422]
[1680483808605,1.6942236,1792.5,1792.4,0.78558422]
[1680483809099,2.56933323,1792.5,1792.4,0.78558422]
[1680483809704,1.6942236,1792.5,1792.4,0.78558422]
[1680483810594,1.6942236,1792.5,1792.4,0.20075442]
[1680483810795,1.6942236,1792.5,1792.3,0.5848298]
[1680483810999,3.2078,1792.4,1792.3,0.5848298]
[1680483820605,3.2078,1792.4,1792.3,0.78502205]
[1680483822110,4.0448,1792.4,1792.3,0.78502205]
[1680483822906,5.50213323,1792.6,1792.3,0.78502205]
[1680483823201,0.002,1792.6,1792.4,1.4208298]
[1680483824101,0.002,1792.6,1792.5,1.0]
[1680483824607,0.002,1792.6,1792.5,1.5848298]
[1680483827108,0.002,1792.6,1792.5,0.5848298]
[1680483834513,4.3248,1792.6,1792.5,0.5848298]
[1680483834815,4.9080236,1792.6,1792.4,0.5848298]
[1680483835112,4.9080236,1792.6,1792.5,0.19965073]
[1680483835514,4.9080236,1792.6,1792.4,0.5848298]
[1680483835715,4.9080236,1792.6,1792.5,0.19962346]
[1680483836015,4.9080236,1792.6,1792.4,0.5848298]
[1680483836412,4.9080236,1792.6,1792.5,0.1996029]
[1680483836812,4.9080236,1792.6,1792.4,0.5848298]
[1680483837115,4.9080236,1792.6,1792.5,0.19957659]
[1680483837624,4.9080236,1792.6,1792.4,0.5848298]
[1680483838115,4.9080236,1792.6,1792.5,0.19953753]
[1680483838518,4.9080236,1792.6,1792.4,0.5848298]
[1680483838907,4.9080236,1792.6,1792.5,0.19950981]
[1680483839310,4.9080236,1792.6,1792.4,0.5848298]
[1680483839512,4.9080236,1792.6,1792.5,0.19948307]
[1680483839816,4.9080236,1792.6,1792.4,0.5848298]
[1680483840015,4.9080236,1792.6,1792.5,0.19946404]
[1680483840417,4.9080236,1792.6,1792.4,0.5848298]
[1680483840816,4.9080236,1792.6,1792.5,0.19943644]
[1680483841019,4.9080236,1792.6,1792.4,0.5848298]
[1680483841412,4.9080236,1792.6,1792.5,0.1994162]
[1680483841714,4.9080236,1792.6,1792.4,0.5848298]
[1680483842122,4.9080236,1792.6,1792.5,0.1993895]
[1680483842414,3.7930236,1792.6,1792.5,0.1993895]
[1680483842620,3.7930236,1792.6,1792.4,0.5848298]
[1680483843121,3.7930236,1792.6,1792.5,0.78418179]
[1680483843522,3.7930236,1792.6,1792.5,0.19935199]
[1680483844719,3.7930236,1792.6,1792.5,0.78418179]
[1680483848519,4.08490963,1792.6,1792.5,0.78418179]
[1680483849719,0.87710963,1792.6,1792.5,0.19935199]
[1680483851335,0.87710963,1792.6,1792.5,0.78406464]
[1680483855832,5.19990963,1792.6,1792.5,0.78406464]
[1680483856034,5.19990963,1792.6,1792.5,0.58471265]
[1680483856435,5.19990963,1792.6,1792.5,0.7835669]
[1680483856735,4.3248,1792.6,1792.5,0.7835669]
[1680483857133,4.3248,1792.6,1792.5,0.58471265]
[1680483858937,5.20034564,1792.6,1792.5,0.58471265]
[1680483860038,5.20034564,1792.6,1792.5,0.78342785]
[1680483860538,5.20034564,1792.6,1792.5,0.58471265]
[1680483861338,5.20034564,1792.6,1792.5,0.78337949]
[1680483862335,5.3248,1792.6,1792.4,0.58471265]
[1680483862534,1.115,1792.5,1792.4,0.58471265]
[1680483862730,3.28236719,1792.5,1792.4,0.58471265]
[1680483862938,3.28236719,1792.5,1792.4,0.78332342]
[1680483863131,3.28236719,1792.5,1792.4,0.58471265]
[1680483865040,2.28236719,1792.5,1792.4,0.7832406]
[1680483865540,3.28236719,1792.5,1792.4,0.7832406]
[1680483866239,3.28236719,1792.5,1792.4,0.58471265]
[1680483868240,2.115,1792.5,1792.4,0.58471265]
[1680483868646,3.28236719,1792.5,1792.4,0.58471265]
[1680483868840,2.28236719,1792.5,1792.4,0.58471265]
[1680483869343,2.28236719,1792.5,1792.4,0.78308149]
[1680483869746,1.115,1792.5,1792.4,0.78308149]
[1680483870145,2.28236719,1792.5,1792.4,0.78308149]
[1680483870344,1.115,1792.5,1792.4,0.78308149]
[1680483870541,2.28236719,1792.5,1792.4,0.78308149]
[1680483871240,2.28236719,1792.5,1792.4,0.77556414]
[1680483872045,1.115,1792.5,1792.4,0.77556414]
[1680483873744,2.28236719,1792.5,1792.4,0.77556414]
[1680483874355,1.115,1792.5,1792.4,0.77556414]
[1680483874649,2.28236719,1792.5,1792.4,0.77556414]
[1680483879458,2.23,1792.5,1792.4,0.19836884]
[1680483879662,4.37662999,1792.5,1792.1,0.87739148]
[1680483879852,4.90650975,1792.2,1792.1,0.87739148]
[1680483880156,6.02150975,1792.2,1792.1,0.9189319]
[1680483880361,5.4378,1792.2,1792.1,0.04154042]
[1680483880658,1.0,1792.1,1791.8,0.87739148]
[1680483880859,3.2078,1791.9,1791.8,0.87739148]
[1680483891668,0.58318379,1792.2,1791.8,1.98539148]
[1680483891867,3.79098379,1792.3,1792.0,1.115]
[1680483892067,3.79098379,1792.3,1792.0,2.70665996]
[1680483892262,3.79098379,1792.3,1792.0,1.70665996]
[1680483895875,0.87485846,1792.9,1792.2,12.75589473]
[1680483896073,0.87485846,1793.0,1792.6,0.837]
[1680483896375,1.71185846,1793.0,1792.6,0.837]
[1680483897180,0.835,1792.8,1792.5,1.71045582]
[1680483897476,0.835,1792.8,1792.5,4.91825582]
[1680483900976,0.835,1792.8,1792.5,1.71045582]
[1680483901282,0.835,1792.8,1792.5,4.91825582]
[1680483902081,0.835,1792.9,1792.5,4.92025582]
[1680483902380,1.115,1792.9,1792.5,5.19825582]
[1680483905986,1.115,1792.9,1792.6,0.34748701]
[1680483907083,1.115,1793.0,1792.6,1.46248701]
[1680483909487,4.08265846,1793.1,1792.6,0.34748701]
[1680483909488,1.115,1792.9,1792.6,0.34748701]
[1680483909790,1.0,1792.8,1792.6,0.34748701]
[1680483910294,5.3228,1792.9,1792.6,0.34748701]
[1680483911585,4.3228,1792.9,1792.6,0.34748701]
[1680483912091,1.115,1792.7,1792.6,0.34748701]
[1680483912291,4.3228,1792.7,1792.6,0.34748701]
[1680483912499,4.3228,1792.7,1792.3,1.115]
[1680483912692,1.115,1792.4,1792.1,0.87545582]
[1680483912895,2.115,1792.3,1792.0,1.43332439]
[1680483913295,1.115,1792.3,1792.0,1.43332439]
[1680483913492,1.115,1792.1,1792.0,0.55786857]
[1680483913797,1.115,1792.1,1791.9,0.87545582]
[1680483915596,4.3198,1792.3,1791.9,1.98045582]
[1680483915998,4.3198,1792.3,1792.0,0.11001738]
[1680483922796,3.2078,1792.3,1792.1,1.115]
[1680483922997,1.115,1792.7,1792.2,1.109]
[1680483923198,1.115,1792.7,1792.2,4.3168]
[1680483926091,3.2078,1792.8,1792.5,1.115]
[1680483926505,1.98685846,1792.9,1792.5,1.115]
[1680483926701,1.112,1792.9,1792.5,1.115]
[1680483927003,1.112,1792.9,1792.6,0.35610699]
[1680483932101,2.112,1792.9,1792.6,0.35610699]
[1680483932300,4.3228,1792.8,1792.6,0.35610699]
[1680483932501,4.3228,1792.8,1792.4,1.115]
[1680483932703,4.3228,1792.8,1792.4,4.3228]
[1680483933407,4.3228,1792.8,1792.4,5.19825582]
[1680483935512,0.002,1792.5,1792.4,5.19825582]
[1680483938006,0.002,1792.5,1792.3,0.87545582]
[1680483942018,0.002,1792.5,1792.4,0.29992136]
[1680483942517,0.002,1792.5,1792.3,0.87545582]
[1680483944216,0.002,1792.5,1792.3,1.87545582]
[1680483945418,0.002,1792.5,1792.3,0.87545582]
[1680483946421,0.002,1792.5,1792.3,1.87545582]
[1680483947118,0.002,1792.5,1792.3,0.87545582]
[1680483947721,0.002,1792.5,1792.4,0.87545582]
[1680483947922,0.002,1792.5,1792.4,4.08325582]
[1680483948311,0.002,1792.5,1792.4,0.87545582]
[1680483948517,0.002,1792.5,1792.4,5.18825582]
[1680483948821,0.002,1792.5,1792.4,6.48007443]
[1680483956325,0.002,1792.5,1792.4,5.48007443]
[1680483957027,1.98985846,1792.9,1792.4,5.86854372]
[1680483957229,1.98985846,1792.9,1792.5,2.34538603]
[1680483958530,1.98985846,1792.9,1792.5,3.34538603]
[1680483958728,1.98985846,1792.9,1792.5,2.34538603]
[1680483960637,1.115,1792.8,1792.5,1.23938603]
[1680483960938,2.115,1792.8,1792.5,1.23938603]
[1680483961234,1.115,1792.8,1792.5,1.23938603]
[1680483964941,1.115,1792.8,1792.6,0.87574651]
[1680483965134,1.98985846,1792.8,1792.6,0.87574651]
[1680483965336,1.115,1792.8,1792.7,0.38791835]
[1680483965537,1.115,1792.8,1792.6,0.87574651]
[1680483966641,1.98985846,1792.8,1792.6,0.87574651]
[1680483969739,1.98985846,1792.8,1792.7,0.87574651]
[1680483970237,1.98985846,1792.8,1792.6,0.87574651]
[1680483970945,1.98985846,1792.8,1792.7,0.87574651]
[1680483971343,5.48627794,1792.8,1792.6,0.87574651]
[1680483971546,5.48627794,1792.8,1792.5,0.87574651]
[1680483971547,2.28147794,1792.7,1792.5,0.87574651]
[1680483971845,1.87689746,1792.6,1792.5,0.87574651]
[1680483972045,2.99189746,1792.6,1792.5,0.87574651]
[1680483972249,2.70789746,1792.6,1792.5,0.87574651]
[1680483974049,1.70789746,1792.6,1792.5,0.87574651]
[1680483977251,1.99289746,1792.6,1792.5,0.87574651]
[1680483978642,5.20069746,1792.6,1792.5,0.87574651]
[1680483978847,5.20069746,1792.6,1792.4,0.87574651]
[1680483979050,1.0,1792.5,1792.4,0.87574651]
[1680483979451,1.0,1792.5,1792.4,0.87727827]
[1680483982146,2.116,1792.5,1792.4,0.87727827]
[1680483983756,1.116,1792.5,1792.4,0.87727827]
[1680483983957,1.98289746,1792.6,1792.4,1.16727443]
[1680483984155,1.98289746,1792.6,1792.5,0.87707104]
[1680483984958,1.98289746,1792.6,1792.4,0.87707104]
[1680483985351,1.98289746,1792.6,1792.5,0.87707104]
[1680483985557,1.98289746,1792.6,1792.4,0.87707104]
[1680483987255,1.98289746,1792.6,1792.5,0.27240035]
[1680483987448,5.19069746,1792.6,1792.5,0.27240035]
[1680483987653,5.3188,1792.6,1792.5,0.27240035]
[1680483987854,5.3188,1792.6,1792.4,0.87707104]
[1680483988153,2.99244611,1792.5,1792.4,0.87707104]
[1680483988456,2.116,1792.5,1792.4,0.87707104]
[1680483988759,2.99244611,1792.5,1792.3,0.87707104]
[1680483988947,3.2078,1792.4,1792.3,0.87707104]
[1680483989153,3.2078,1792.4,1792.2,1.16727443]
[1680483989662,3.2078,1792.4,1792.3,0.87708597]
[1680483990252,6.31024611,1792.4,1792.2,0.87708597]
[1680483990561,1.116,1792.2,1792.1,0.87708597]
[1680483990762,6.4318,1792.2,1792.1,0.87708597]
[1680483992160,5.3158,1792.2,1792.1,0.87708597]
[1680483992562,4.3158,1792.2,1792.1,0.87708597]
[1680483993064,4.3158,1792.2,1792.0,1.16727443]
[1680483993065,4.3158,1792.2,1792.0,0.87708597]
[1680483993259,3.2078,1792.2,1792.1,0.58434582]
[1680483993462,4.3138,1792.2,1792.1,0.58434582]
[1680483995159,4.40566142,1792.2,1792.1,0.58434582]
[1680483998361,4.40566142,1792.2,1792.0,0.58434582]
[1680483998665,2.111,1792.1,1791.9,0.58434582]
[1680483998859,2.106,1792.0,1791.9,0.58434582]
[1680483999271,1.106,1792.0,1791.9,0.58434582]
[1680484001070,1.106,1792.0,1791.8,0.58434582]
[1680484002168,0.08083575,1791.9,1791.8,1.46143179]
[1680484003066,0.08083575,1791.9,1791.8,0.58434582]
[1680484010862,3.2078,1792.2,1791.8,1.99308597]
[1680484011062,1.98224536,1792.4,1792.0,1.69913251]
[1680484011063,1.106,1792.4,1792.0,1.69913251]
[1680484011267,1.106,1792.4,1792.0,4.90693251]
[1680484011568,1.106,1792.4,1792.1,0.58313251]
[1680484011871,1.106,1792.4,1792.1,1.58313251]
[1680484012072,1.111,1792.5,1792.1,1.58313251]
[1680484012674,1.111,1792.5,1792.1,0.58313251]
[1680484015770,1.69397296,1792.5,1792.1,0.58313251]
[1680484016268,3.2078,1792.4,1792.1,0.58313251]
[1680484017073,3.79077296,1792.4,1792.1,0.58313251]
[1680484017273,3.2078,1792.4,1792.1,0.58313251]
[1680484017575,3.79077296,1792.4,1792.1,0.58313251]
[1680484017877,3.2078,1792.4,1792.1,0.58313251]
[1680484018077,1.106,1792.3,1792.1,0.58313251]
[1680484018271,1.106,1792.3,1792.2,0.13647982]
[1680484018673,1.106,1792.3,1792.1,0.58313251]
[1680484020079,1.106,1792.3,1792.1,1.46021848]
[1680484022084,1.106,1792.3,1792.2,0.58313251]
[1680484024988,1.106,1792.3,1792.1,1.46021848]
[1680484025187,1.106,1792.3,1792.0,0.58313251]
[1680484025188,4.89677296,1792.2,1792.0,0.58313251]
[1680484025398,1.116,1792.1,1792.0,0.58313251]
[1680484025587,2.116,1792.1,1792.0,0.58313251]
[1680484025786,2.116,1792.1,1791.9,1.46021848]
[1680484026191,1.116,1792.1,1792.0,0.58313251]
[1680484027194,2.116,1792.1,1792.0,0.58313251]
[1680484027396,2.116,1792.1,1791.9,1.46021848]
[1680484027592,2.116,1792.1,1792.0,0.58313251]
[1680484027790,2.116,1792.1,1791.9,0.58313251]
[1680484028092,2.116,1792.1,1791.8,0.58313251]
[1680484028093,4.90177296,1792.0,1791.8,0.58313251]
[1680484028287,2.68935833,1791.9,1791.7,0.58313251]
[1680484028496,4.3138,1791.8,1791.7,0.58313251]
[1680484031797,4.43131049,1791.8,1791.7,0.58313251]
[1680484032286,6.12266882,1791.8,1791.6,0.58313251]
[1680484032488,1.111,1791.7,1791.5,1.46021848]
[1680484032688,1.116,1791.6,1791.5,1.46021848]
[1680484033700,1.116,1791.6,1791.5,0.58313251]
[1680484035099,5.01666882,1791.8,1791.5,0.87708597]
[1680484035295,0.11751049,1791.8,1791.7,0.58394086]
[1680484035801,5.77840369,1792.0,1791.7,0.58394086]
[1680484036102,0.58335833,1791.9,1791.7,0.58394086]
[1680484036501,1.58335833,1791.9,1791.7,0.58394086]
[1680484036900,3.2078,1791.8,1791.7,0.58394086]
[1680484041097,3.2078,1791.8,1791.6,1.46102683]
[1680484043202,3.2078,1791.8,1791.6,0.58394086]
[1680484043505,1.106,1791.7,1791.6,0.58394086]
[1680484043906,2.106,1791.7,1791.5,0.58394086]
[1680484044106,2.106,1791.7,1791.4,0.58394086]
[1680484044107,4.3138,1791.6,1791.4,0.58394086]
[1680484044405,1.106,1791.5,1791.4,0.58394086]
[1680484044608,2.106,1791.5,1791.4,0.58394086]
[1680484044801,1.106,1791.5,1791.4,0.58394086]
[1680484045104,1.106,1791.5,1791.3,1.46102683]
[1680484045405,4.3138,1791.4,1791.3,1.46102683]
[1680484045706,4.3138,1791.4,1791.3,0.58394086]
[1680484047098,4.70197001,1791.4,1791.3,0.58394086]
[1680484047304,3.59597001,1791.4,1791.3,0.58394086]
[1680484051712,3.59597001,1791.4,1791.2,1.46102683]
[1680484051910,3.59597001,1791.4,1791.3,0.58394086]
[1680484052207,3.59597001,1791.4,1791.2,1.46102683]
[1680484052409,3.59597001,1791.4,1791.3,0.58394086]
[1680484053111,3.59597001,1791.4,1791.2,0.87708597]
[1680484053112,3.59597001,1791.4,1791.2,1.46102683]
[1680484053411,3.59597001,1791.4,1791.2,0.58394086]
[1680484055610,4.70697001,1791.4,1791.2,0.58394086]
[1680484056810,4.70697001,1791.4,1791.1,0.58394086]
[1680484056811,1.111,1791.3,1791.1,0.58394086]
[1680484057021,4.3188,1791.2,1791.0,0.58394086]
[1680484057918,4.3188,1791.2,1790.9,1.46102683]
[1680484058412,1.106,1791.0,1790.9,0.58394086]
[1680484058804,4.3138,1791.0,1790.9,0.58394086]
[1680484060514,4.3138,1791.0,1790.8,1.46102683]
[1680484060814,4.3138,1791.0,1790.9,0.58394086]
[1680484062011,3.86366529,1791.0,1790.9,0.58394086]
[1680484065521,0.65586529,1791.0,1790.9,0.58394086]
[1680484066317,0.65586529,1791.0,1790.9,1.46102683]
[1680484066517,0.65586529,1791.0,1790.9,0.58394086]
[1680484070225,3.86366529,1791.0,1790.9,0.58394086]
[1680484070432,4.96966529,1791.0,1790.8,0.58394086]
[1680484070636,1.116,1790.9,1790.8,0.58394086]
[1680484076028,1.11318301,1790.9,1790.8,0.58394086]
[1680484076427,4.97466529,1791.0,1790.8,0.58394086]
[1680484076631,0.65586529,1791.0,1790.8,1.69994086]
[1680484076836,1.116,1791.2,1790.8,1.69994086]
[1680484077033,0.65316868,1791.1,1790.8,2.57702683]
[1680484077335,2.116,1791.2,1790.8,1.69994086]
[1680484077638,1.116,1791.2,1790.8,2.57702683]
[1680484077836,1.116,1791.2,1790.9,0.58394086]
[1680484078030,1.116,1791.2,1790.8,2.57702683]
[1680484078231,1.116,1791.2,1790.9,0.58394086]
[1680484081139,1.111,1791.0,1790.9,0.58394086]
[1680484081435,1.111,1791.0,1790.8,0.58394086]
[1680484081631,1.0,1790.9,1790.8,0.58394086]
[1680484082035,5.3238,1790.9,1790.8,0.58394086]
[1680484082237,5.3238,1790.9,1790.7,0.58394086]
[1680484086343,4.3238,1790.9,1790.7,0.58394086]
[1680484086647,1.116,1791.0,1790.8,0.58394086]
[1680484089046,4.3238,1790.9,1790.8,0.58394086]
[1680484091542,4.3238,1790.9,1790.7,1.46102683]
[1680484091746,4.3238,1790.9,1790.8,0.58394086]
[1680484092252,4.3238,1790.9,1790.7,1.46102683]
[1680484092452,1.106,1790.8,1790.7,1.46102683]
[1680484092644,1.106,1790.8,1790.7,0.58394086]
[1680484092645,2.106,1790.8,1790.7,0.58394086]
[1680484093546,3.222,1790.8,1790.6,0.58394086]
[1680484093750,4.3138,1790.7,1790.5,1.46102683]
[1680484093953,1.116,1790.6,1790.5,0.58426913]
[1680484094548,2.116,1790.6,1790.4,1.4613551]
[1680484094851,2.116,1790.6,1790.4,0.58398481]
[1680484094852,4.3138,1790.5,1790.4,0.58398481]
[1680484097451,1.116,1790.7,1790.4,0.58398481]
[1680484097650,1.116,1790.7,1790.4,1.46107078]
[1680484097955,1.116,1790.7,1790.4,0.58398481]
[1680484098355,1.116,1790.7,1790.4,1.46107078]
[1680484098757,1.116,1790.7,1790.4,0.58398481]
[1680484098959,3.2078,1790.6,1790.4,0.58398481]
[1680484100058,1.116,1790.5,1790.4,0.58398481]
[1680484103269,1.116,1790.5,1790.4,0.57702822]
[1680484106059,1.116,1790.5,1790.3,0.87708597]
[1680484106257,3.2078,1790.4,1790.3,0.87708597]
[1680484106655,3.2078,1790.4,1790.2,0.87708597]
[1680484106860,4.1300264,1790.4,1790.2,0.87708597]
[1680484107466,1.116,1790.3,1790.2,0.87708597]
[1680484113387,5.2410264,1790.4,1790.2,0.87708597]
[1680484113685,2.0332264,1790.4,1790.2,0.87708597]
[1680484113972,2.0332264,1790.4,1790.3,0.87708597]
[1680484114174,2.0332264,1790.4,1790.3,1.87708597]
[1680484114585,2.0332264,1790.4,1790.3,0.87708597]
[1680484116478,2.0332264,1790.4,1790.2,2.16727443]
[1680484116775,0.9222264,1790.4,1790.3,2.16727443]
[1680484117177,1.111,1790.6,1790.3,2.16727443]
[1680484117378,1.111,1790.6,1790.4,1.87601215]
[1680484118970,1.111,1790.6,1790.4,0.87601215]
[1680484121682,3.2078,1790.7,1790.5,0.87601215]
[1680484121977,0.92353633,1790.5,1790.4,0.87601215]
[1680484122175,4.3138,1790.5,1790.3,0.87601215]
[1680484122372,2.116,1790.4,1790.3,0.87601215]
[1680484122571,1.116,1790.4,1790.3,0.87601215]
[1680484124378,1.116,1790.4,1790.2,1.16727443]
[1680484124579,1.116,1790.4,1790.3,0.87661453]
[1680484124773,1.116,1790.4,1790.3,0.87661263]
[1680484125273,1.116,1790.4,1790.3,0.87661501]
[1680484125675,2.232,1790.4,1790.1,1.16727443]
[1680484125980,3.2078,1790.3,1790.2,0.87703061]
[1680484126180,5.3138,1790.3,1790.2,0.87703061]
[1680484126474,5.3138,1790.3,1790.1,0.87703061]
[1680484126676,1.106,1790.2,1790.1,0.87703061]
[1680484127082,2.106,1790.2,1790.1,0.87703061]
[1680484127274,3.222,1790.2,1790.1,0.87703061]
[1680484127474,3.222,1790.2,1790.0,0.87703061]
[1680484127783,5.3188,1790.1,1790.0,0.87703061]
[1680484129889,4.3188,1790.1,1790.0,0.87703061]
[1680484132290,5.4348,1790.1,1789.9,0.87703061]
[1680484132485,2.231,1790.0,1789.8,0.87703061]
[1680484132787,4.3188,1789.9,1789.8,0.87703061]
[1680484134678,4.3188,1789.9,1789.7,0.87703061]
[1680484134883,2.111,1789.8,1789.6,1.16727443]
[1680484135080,1.111,1789.8,1789.6,1.16727443]
[1680484136589,1.111,1789.8,1789.7,0.87604052]
[1680484136784,1.111,1789.8,1789.6,1.16727443]
[1680484137082,1.111,1790.0,1789.7,1.16727443]
[1680484137283,1.111,1790.0,1789.8,0.87620974]
[1680484141996,4.3138,1790.1,1789.8,0.87620974]
[1680484143393,1.116,1790.2,1789.9,1.87620974]
[1680484143911,1.116,1790.2,1790.0,0.87620974]
[1680484147214,1.116,1790.2,1790.0,4.08400974]
[1680484147406,1.116,1790.2,1790.0,0.87620974]
[1680484151909,1.0175061,1790.1,1790.0,0.87620974]
[1680484152209,1.116,1790.2,1790.0,0.87620974]
[1680484152811,4.3138,1790.1,1790.0,0.87620974]
[1680484153517,1.106,1790.1,1790.0,0.87620974]
[1680484154016,13.106,1790.1,1790.0,0.87620974]
[1680484154215,5.0,1789.7,1789.4,0.87659673]
[1680484154513,6.02264891,1789.5,1788.9,2.04401165]
[1680484154715,1.106,1789.1,1788.8,0.87539565]